{"text_format":"3","workbook":"xlsx","n_sheets":1,"sheets":["Pianificazione budget regali"],"not_rendered":{"defined_names":1},"read":"whole","date_system":"1900"}

{"sheet":"Pianificazione budget regali","index":0,"n_rows":37,"n_cols":12,"rows_kept":37,"merged":[[1,1,7,4],[9,1,9,4],[9,8,9,11],[19,1,19,4],[19,8,19,11],[30,1,30,4],[30,8,30,11]]}
[]
[null,"Pianificazione\nbudget regali"]
[]
[{"$nulls":8},"BUDGET REGALI",null,{"$f":"SUM(Regali[Budget],Confezioni[Budget],(Viaggi[Budget],(Pasti[Budget],(Svago[Budget],Varie[Budget]))))","v":{"v":750,"d":"€ 750.00"}}]
[{"$nulls":8},"SPESE EFFETTIVE",null,{"$f":"SUM((Regali[Effettive],(Confezioni[Effettive],(Viaggi[Effettive],(Pasti[Effettive],(Svago[Effettive],(Varie[Effettive])))))))","v":{"v":820,"d":"€ 820.00"}}]
[]
[{"$nulls":8},"DIFFERENZA (superiore/inferiore al budget)",null,{"$f":"SUM(K4-K5)","v":{"v":-70,"d":"-€ 70.00"}}]
[]
[]
[null,"Regali",{"$nulls":6},"Menu festività"]
[null,"Articolo","Budget","Effettive","Differenza",{"$nulls":3},"Articolo","Budget","Effettive","Differenza"]
[null,"Famiglia",{"v":500,"d":"€ 500.00"},{"v":495,"d":"€ 495.00"},{"$f":"Regali[[#This Row],[Budget]]-Regali[[#This Row],[Effettive]]","v":{"v":5,"d":"€ 5.00"}},{"$nulls":3},"Generi alimentari",null,null,{"$f":"Pasti[[#This Row],[Budget]]-Pasti[[#This Row],[Effettive]]","v":{"v":0,"d":"€ 0.00"}}]
[null,"Amici",{"v":250,"d":"€ 250.00"},{"v":325,"d":"€ 325.00"},{"$f":"Regali[[#This Row],[Budget]]-Regali[[#This Row],[Effettive]]","v":{"v":-75,"d":"-€ 75.00"}},{"$nulls":3},"Libagioni",null,null,{"$f":"Pasti[[#This Row],[Budget]]-Pasti[[#This Row],[Effettive]]","v":{"v":0,"d":"€ 0.00"}}]
[null,"Colleghi",null,null,{"$f":"Regali[[#This Row],[Budget]]-Regali[[#This Row],[Effettive]]","v":{"v":0,"d":"€ 0.00"}},{"$nulls":3},"Decorazioni",null,null,{"$f":"Pasti[[#This Row],[Budget]]-Pasti[[#This Row],[Effettive]]","v":{"v":0,"d":"€ 0.00"}}]
[null,"Insegnanti, bambinaie, baby sitter e così via",null,null,{"$f":"Regali[[#This Row],[Budget]]-Regali[[#This Row],[Effettive]]","v":{"v":0,"d":"€ 0.00"}},{"$nulls":3},"Altro (spostarsi con il tasto di tabulazione all'ultima colonna di questa riga per aggiungere una riga)",null,null,{"$f":"Pasti[[#This Row],[Budget]]-Pasti[[#This Row],[Effettive]]","v":{"v":0,"d":"€ 0.00"}}]
[null,"Beneficenza",null,null,{"$f":"Regali[[#This Row],[Budget]]-Regali[[#This Row],[Effettive]]","v":{"v":0,"d":"€ 0.00"}},{"$nulls":3},"Totale",{"$f":"SUBTOTAL(109,Pasti[Budget])","v":{"v":0,"d":"€ 0.00"}},{"$f":"SUBTOTAL(109,Pasti[Effettive])","v":{"v":0,"d":"€ 0.00"}},{"$f":"SUBTOTAL(109,Pasti[Differenza])","v":{"v":0,"d":"€ 0.00"}}]
[null,"Altro (spostarsi con il tasto di tabulazione all'ultima colonna di questa riga per aggiungere una riga)",null,null,{"$f":"Regali[[#This Row],[Budget]]-Regali[[#This Row],[Effettive]]","v":{"v":0,"d":"€ 0.00"}}]
[null,"Totale",{"$f":"SUBTOTAL(109,Regali[Budget])","v":{"v":750,"d":"€ 750.00"}},{"$f":"SUBTOTAL(109,Regali[Effettive])","v":{"v":820,"d":"€ 820.00"}},{"$f":"SUBTOTAL(109,Regali[Differenza])","v":{"v":-70,"d":"-€ 70.00"}}]
[]
[null,"Confezioni",{"$nulls":6},"Svago"]
[null,"Articolo","Budget","Effettive","Differenza",{"$nulls":3},"Articolo","Budget","Effettive","Differenza"]
[null,"Carta da regalo",null,null,{"$f":"Confezioni[[#This Row],[Budget]]-Confezioni[[#This Row],[Effettive]]","v":{"v":0,"d":"€ 0.00"}},{"$nulls":3},"Aiuti per le feste (barista, addetto al catering, addetti alle pulizie, e così via)",null,null,{"$f":"Svago[[#This Row],[Budget]]-Svago[[#This Row],[Effettive]]","v":{"v":0,"d":"€ 0.00"}}]
[null,"Contrassegni",null,null,{"$f":"Confezioni[[#This Row],[Budget]]-Confezioni[[#This Row],[Effettive]]","v":{"v":0,"d":"€ 0.00"}},{"$nulls":3},"Decorazioni",null,null,{"$f":"Svago[[#This Row],[Budget]]-Svago[[#This Row],[Effettive]]","v":{"v":0,"d":"€ 0.00"}}]
[null,"Materiali (nastri, strisce e così via)",null,null,{"$f":"Confezioni[[#This Row],[Budget]]-Confezioni[[#This Row],[Effettive]]","v":{"v":0,"d":"€ 0.00"}},{"$nulls":3},"Cibo e bevande",null,null,{"$f":"Svago[[#This Row],[Budget]]-Svago[[#This Row],[Effettive]]","v":{"v":0,"d":"€ 0.00"}}]
[null,"Scatole",null,null,{"$f":"Confezioni[[#This Row],[Budget]]-Confezioni[[#This Row],[Effettive]]","v":{"v":0,"d":"€ 0.00"}},{"$nulls":3},"Abbigliamento",null,null,{"$f":"Svago[[#This Row],[Budget]]-Svago[[#This Row],[Effettive]]","v":{"v":0,"d":"€ 0.00"}}]
[null,"Affrancatura",null,null,{"$f":"Confezioni[[#This Row],[Budget]]-Confezioni[[#This Row],[Effettive]]","v":{"v":0,"d":"€ 0.00"}},{"$nulls":3},"Biglietti",null,null,{"$f":"Svago[[#This Row],[Budget]]-Svago[[#This Row],[Effettive]]","v":{"v":0,"d":"€ 0.00"}}]
[null,"Altro (spostarsi con il tasto di tabulazione all'ultima colonna di questa riga per aggiungere una riga)",null,null,{"$f":"Confezioni[[#This Row],[Budget]]-Confezioni[[#This Row],[Effettive]]","v":{"v":0,"d":"€ 0.00"}},{"$nulls":3},"Cene fuori",null,null,{"$f":"Svago[[#This Row],[Budget]]-Svago[[#This Row],[Effettive]]","v":{"v":0,"d":"€ 0.00"}}]
[null,"Totale",{"$f":"SUBTOTAL(109,Confezioni[Budget])","v":{"v":0,"d":"€ 0.00"}},{"$f":"SUBTOTAL(109,Confezioni[Effettive])","v":{"v":0,"d":"€ 0.00"}},{"$f":"SUBTOTAL(109,Confezioni[Differenza])","v":{"v":0,"d":"€ 0.00"}},{"$nulls":3},"Altro (spostarsi con il tasto di tabulazione all'ultima colonna di questa riga per aggiungere una riga)",null,null,{"$f":"Svago[[#This Row],[Budget]]-Svago[[#This Row],[Effettive]]","v":{"v":0,"d":"€ 0.00"}}]
[{"$nulls":8},"Totale",{"$f":"SUBTOTAL(109,Svago[Budget])","v":{"v":0,"d":"€ 0.00"}},{"$f":"SUBTOTAL(109,Svago[Effettive])","v":{"v":0,"d":"€ 0.00"}},{"$f":"SUBTOTAL(109,Svago[Differenza])","v":{"v":0,"d":"€ 0.00"}}]
[]
[null,"Viaggi",{"$nulls":6},"Varie"]
[null,"Articolo","Budget","Effettive","Differenza",{"$nulls":3},"Articolo","Budget","Effettive","Differenza"]
[null,"Biglietti aerei",null,null,{"$f":"Viaggi[[#This Row],[Budget]]-Viaggi[[#This Row],[Effettive]]","v":{"v":0,"d":"€ 0.00"}},{"$nulls":3},"Foto delle vacanze",null,null,{"$f":"Varie[[#This Row],[Budget]]-Varie[[#This Row],[Effettive]]","v":{"v":0,"d":"€ 0.00"}}]
[null,"Alloggio",null,null,{"$f":"Viaggi[[#This Row],[Budget]]-Viaggi[[#This Row],[Effettive]]","v":{"v":0,"d":"€ 0.00"}},{"$nulls":3},"Benzina ",null,null,{"$f":"Varie[[#This Row],[Budget]]-Varie[[#This Row],[Effettive]]","v":{"v":0,"d":"€ 0.00"}}]
[null,"Trasporti",null,null,{"$f":"Viaggi[[#This Row],[Budget]]-Viaggi[[#This Row],[Effettive]]","v":{"v":0,"d":"€ 0.00"}},{"$nulls":3},"Altro (spostarsi con il tasto di tabulazione all'ultima colonna di questa riga per aggiungere una riga)",null,null,{"$f":"Varie[[#This Row],[Budget]]-Varie[[#This Row],[Effettive]]","v":{"v":0,"d":"€ 0.00"}}]
[null,"Altro (spostarsi con il tasto di tabulazione all'ultima colonna di questa riga per aggiungere una riga)",null,null,{"$f":"Viaggi[[#This Row],[Budget]]-Viaggi[[#This Row],[Effettive]]","v":{"v":0,"d":"€ 0.00"}},{"$nulls":3},"Totale",{"$f":"SUBTOTAL(109,Varie[Budget])","v":{"v":0,"d":"€ 0.00"}},{"$f":"SUBTOTAL(109,Varie[Effettive])","v":{"v":0,"d":"€ 0.00"}},{"$f":"SUBTOTAL(109,Varie[Differenza])","v":{"v":0,"d":"€ 0.00"}}]
[null,"Totale",{"$f":"SUBTOTAL(109,Viaggi[Budget])","v":{"v":0,"d":"€ 0.00"}},{"$f":"SUBTOTAL(109,Viaggi[Effettive])","v":{"v":0,"d":"€ 0.00"}},{"$f":"SUBTOTAL(109,Viaggi[Differenza])","v":{"v":0,"d":"€ 0.00"}}]